fUSD/lending_fUSD_20260408
["ID","MTS","AMOUNT","RATE_DAILY","PERIOD"]
[420016414,1775616646158,-500.0,0.00013698,2]
[420016415,1775616646168,-500.0,0.00013698,2]
[420016416,1775616646177,-500.0,0.00013698,2]
[420016417,1775616646186,-500.0,0.00013698,2]
[420016418,1775616646196,-500.0,0.00013698,2]
[420016419,1775616646205,-500.0,0.00013698,2]
[420016420,1775616646214,-301.03967055,0.00013698,2]
[420016421,1775616646224,-500.0,0.00013698,2]
[420016422,1775616646233,-500.0,0.00013698,2]
[420016423,1775616646243,-500.0,0.00013698,2]
[420016424,1775616646252,-500.0,0.00013698,2]
[420016425,1775616646261,-500.0,0.00013698,2]
[420016426,1775616646271,-500.0,0.00013698,2]
[420016427,1775616646280,-500.0,0.00013698,2]
[420016428,1775616646290,-500.0,0.00013698,2]
[420016429,1775616646299,-500.0,0.00013698,2]
[420016430,1775616646308,-500.0,0.00013698,2]
[420016431,1775616646318,-500.0,0.00013698,2]
[420016432,1775616646327,-500.0,0.00013698,2]
[420016433,1775616646336,-500.0,0.00013698,2]
[420016434,1775616646346,-629.72113567,0.00013698,2]
[420016435,1775616646356,-500.0,0.00013698,2]
[420016436,1775616646365,-500.0,0.00013698,2]
[420016437,1775616646374,-500.0,0.00013698,2]
[420016438,1775616646384,-500.0,0.00013698,2]
[420016439,1775616646393,-500.0,0.00013698,2]
[420016440,1775616646402,-500.0,0.00013698,2]
[420016441,1775616646411,-500.0,0.00013698,2]
[420016442,1775616646420,-500.0,0.00013698,2]
[420016443,1775616646430,-500.0,0.00013698,2]
[420016444,1775616646439,-500.0,0.00013698,2]
[420016445,1775616646448,-500.0,0.00013698,2]
[420016446,1775616646458,-500.0,0.00013698,2]
[420016447,1775616646467,-500.0,0.00013698,2]
[420016448,1775616646476,-500.0,0.00013698,2]
[420016449,1775616646485,-500.0,0.00013698,2]
[420016450,1775616646494,-500.0,0.00013698,2]
[420016451,1775616646503,-500.0,0.00013698,2]
[420016452,1775616646512,-500.0,0.00013698,2]
[420016453,1775616646522,-500.0,0.00013698,2]
[420016454,1775616646531,-500.0,0.00013698,2]
[420016455,1775616646541,-500.0,0.00013698,2]
[420016456,1775616646551,-500.0,0.00013698,2]
[420016457,1775616646561,-500.0,0.00013698,2]
[420016458,1775616646570,-500.0,0.00013698,2]
[420016459,1775616646579,-500.0,0.00013698,2]
[420016460,1775616646589,-500.0,0.00013698,2]
[420016461,1775616646598,-500.0,0.00013698,2]
[420016462,1775616646607,-500.0,0.00013698,2]
[420016463,1775616646616,-500.0,0.00013698,2]
[420016464,1775616646626,-500.14075642,0.00013698,2]
[420016465,1775616646636,-500.0,0.00013698,2]
[420016466,1775616646645,-500.0,0.00013698,2]
[420016467,1775616646654,-500.0,0.00013698,2]
[420016468,1775616646664,-500.0,0.00013698,2]
[420016469,1775616646673,-500.0,0.00013698,2]
[420016470,1775616646683,-500.0,0.00013698,2]
[420016471,1775616646692,-500.0,0.00013698,2]
[420016473,1775616646701,-500.0,0.00013698,2]
[420016475,1775616646710,-500.0,0.00013698,2]
[420016477,1775616646719,-500.0,0.00013698,2]
[420016479,1775616646728,-500.0,0.00013698,2]
[420016481,1775616646738,-500.0,0.00013698,2]
[420016483,1775616646748,-150.0,0.00013699,2]
[420016485,1775616646757,-150.0,0.00013699,2]
[420016487,1775616646767,-150.0,0.00013699,2]
[420016489,1775616646776,-150.0,0.00013699,2]
[420016491,1775616646785,-150.0,0.00013699,2]
[420016493,1775616646794,-150.0,0.00013699,2]
[420016495,1775616646804,-150.0,0.00013699,2]
[420016497,1775616646813,-200.0,0.00013699,2]
[420016499,1775616646823,-2108.57,0.00013699,2]
[420016501,1775616646832,-476.15,0.00013699,2]
[420016503,1775616646841,-396.8,0.00013699,2]
[420016505,1775616646850,-330.66,0.00013699,2]
[420016507,1775616646859,-275.55,0.00013699,2]
[420016509,1775616646869,-229.63,0.00013699,2]
[420016511,1775616646878,-3847.79,0.00013699,2]
[420016513,1775616646887,-191.36,0.00013699,2]
[420016515,1775616646896,-159.46,0.00013699,2]
[420016517,1775616646905,-797.34,0.00013699,2]
[420016519,1775616646914,-516.67152996,0.00013699,2]
[420016521,1775616646923,-500.0,0.00013699,2]
[420016523,1775616646932,-500.0,0.00013699,2]
[420016525,1775616646942,-501.53334874,0.00013699,2]
[420016527,1775616646951,-500.0,0.00013699,2]
[420016529,1775616646960,-500.68321897,0.00013699,2]
[420016531,1775616646969,-500.0,0.00013699,2]
[420016533,1775616646978,-500.0,0.00013699,2]
[420016535,1775616646987,-500.0,0.00013699,2]
[420016537,1775616646997,-500.0,0.00013699,2]
[420016539,1775616647007,-500.27274938,0.00013699,2]
[420016541,1775616647016,-500.0,0.00013699,2]
[420016543,1775616647026,-164.42313659,0.00013699,2]
[420016545,1775616647036,-500.0,0.00013699,2]
[420016547,1775616647045,-500.60430488,0.00013699,2]
[420016549,1775616647054,-500.0,0.00013699,2]
[420016551,1775616647063,-474.64837932,0.00013699,2]
[420016552,1775616647073,-500.0,0.00013699,2]
[420016555,1775616647083,-500.0,0.00013699,2]
[420016557,1775616647093,-500.0,0.00013699,2]
[420016559,1775616647103,-163.86569709,0.00013699,2]
[420016560,1775616647112,-500.0,0.00013699,2]
[420016562,1775616647122,-244.23047354,0.00013699,2]
[420016564,1775616647131,-500.47050729,0.00013699,2]
[420016566,1775616647140,-500.0,0.00013699,2]
[420016568,1775616647149,-500.32940014,0.00013699,2]
[420016570,1775616647159,-500.0,0.00013699,2]
[420016572,1775616647168,-503.98766467,0.00013699,2]
[420016574,1775616647177,-290.88257095,0.00013699,2]
[420016576,1775616647187,-500.0,0.00013699,2]
[420016578,1775616647196,-154.48,0.00013699,2]
[420016580,1775616647206,-500.0,0.00013699,2]
[420016582,1775616647215,-490.0,0.00013699,2]
[420016584,1775616647225,-500.0,0.00013699,2]
[420016586,1775616647234,-198.06604293,0.00013699,2]
[420016589,1775616647245,-500.0,0.00013699,2]
[420016591,1775616647255,-500.0,0.00013699,2]
[420016593,1775616647264,-500.0,0.00013699,2]
[420016594,1775616647274,-964.0,0.00013699,2]
[420016597,1775616647284,-964.0,0.00013699,2]
[420016598,1775616647293,-964.0,0.00013699,2]
[420016600,1775616647303,-964.0,0.00013699,2]
[420016602,1775616647313,-964.0,0.00013699,2]
[420016604,1775616647323,-964.0,0.00013699,2]
[420016606,1775616647332,-964.0,0.00013699,2]
[420016608,1775616647341,-964.0,0.00013699,2]
[420016610,1775616647350,-964.0,0.00013699,2]
[420016612,1775616647359,-964.0,0.00013699,2]
[420016614,1775616647368,-964.0,0.00013699,2]
[420016616,1775616647378,-964.0,0.00013699,2]
[420016618,1775616647387,-964.0,0.00013699,2]
[420016620,1775616647397,-964.0,0.00013699,2]
[420016622,1775616647406,-964.0,0.00013699,2]
[420016624,1775616647416,-964.0,0.00013699,2]
[420016626,1775616647425,-964.0,0.00013699,2]
[420016628,1775616647435,-964.0,0.00013699,2]
[420016630,1775616647444,-964.0,0.00013699,2]
[420016632,1775616647453,-964.0,0.00013699,2]
[420016634,1775616647463,-964.0,0.00013699,2]
[420016636,1775616647473,-964.0,0.00013699,2]
[420016638,1775616647483,-964.0,0.00013699,2]
[420016640,1775616647492,-985.24465103,0.00013699,2]
[420016642,1775616647502,-500.0,0.00013699,2]
[420016644,1775616647511,-500.0,0.00013699,2]
[420016646,1775616647520,-458.14939998,0.00013699,2]
[420016648,1775616647530,-1000.0,0.00013699,2]
[420016650,1775616647539,-1000.0,0.00013699,15]
[420016652,1775616647548,-88183.07,0.000137,2]
[420016654,1775616647559,-550.0,0.000137,2]
[420016656,1775616647568,-550.0,0.000137,2]
[420016658,1775616647578,-550.0,0.000137,2]
[420016660,1775616647586,-550.0,0.000137,2]
[420016662,1775616647595,-550.0,0.000137,2]
[420016664,1775616647605,-550.0,0.000137,2]
[420016666,1775616647614,-550.0,0.000137,2]
[420016668,1775616647623,-550.0,0.000137,2]
[420016670,1775616647632,-610.0,0.000137,2]
[420016672,1775616647641,-433.0,0.00013733,2]
[420016685,1775616647756,-12373.02683027,0.00013743,2]
[420016687,1775616647765,-587.0,0.00013754,2]
[420016689,1775616647774,-503.75016468,0.00013764,2]
[420016691,1775616647784,-1678.99529219,0.00013841,2]
[420016757,1775616648690,-15024.40470781,0.00013841,2]
[420016759,1775616648699,-150.0,0.00013964,2]
[420016761,1775616648707,-150.0,0.00013964,2]
[420016763,1775616648717,-150.0,0.00013964,2]
[420016764,1775616648726,-150.0,0.00013964,2]
[420016766,1775616648734,-150.0,0.00013964,2]
[420016768,1775616648743,-150.0,0.00013964,2]
[420016770,1775616648753,-294.0,0.00013964,2]
[420016772,1775616648762,-150.0,0.00013973,2]
[420016774,1775616648771,-150.0,0.00013973,2]
[420016776,1775616648780,-150.0,0.00013973,2]
[420016778,1775616648789,-150.0,0.00013973,2]
[420016780,1775616648798,-150.0,0.00013973,2]
[420016782,1775616648807,-150.0,0.00013973,2]
[420016784,1775616648816,-150.0,0.00013973,2]
[420016786,1775616648825,-1074.81982339,0.00013983,2]
[420016788,1775616648834,-18783.54564858,0.0001399,2]
[420016790,1775616648845,-2943.95635846,0.0001399,2]
[420016792,1775616648855,-5239.89376426,0.0001399,2]
[420016803,1775616648952,-1414.05744566,0.0001399,2]
[420016805,1775616648961,-1034.24,0.00014006,2]
[420016807,1775616648970,-1500.0,0.00014036,2]
[420016809,1775616648979,-155.0,0.00014065,2]
[420016811,1775616648989,-380.334013,0.00014094,7]
[420016813,1775616648998,-507.89611,0.00014094,2]
[420016815,1775616649006,-160.486809,0.00014147,7]
[420016817,1775616649015,-408.13,0.00014191,2]
[420016819,1775616649024,-12373.02683027,0.00014207,2]
[420016821,1775616649033,-500.0,0.00014242,2]
[420016823,1775616649042,-150.0,0.00014247,2]
[420016825,1775616649051,-150.0,0.00014247,2]
[420016826,1775616649061,-150.0,0.00014247,2]
[420016828,1775616649070,-150.0,0.00014247,2]
[420016830,1775616649079,-150.0,0.00014247,2]
[420016832,1775616649088,-1000.0,0.00014247,2]
[420016834,1775616649098,-500.73952609,0.00014247,2]
[420016836,1775616649107,-1000.0,0.00014247,2]
[420016838,1775616649116,-1000.0,0.00014247,2]
[420016840,1775616649125,-1059.64525964,0.00014247,2]
[420016842,1775616649134,-1000.0,0.00014247,2]
[420016844,1775616649143,-1000.0,0.00014247,2]
[420016846,1775616649152,-1000.0,0.00014247,2]
[420016848,1775616649161,-1000.0,0.00014247,2]
[420016850,1775616649170,-1000.0,0.00014247,2]
[420016852,1775616649179,-1000.0,0.00014247,2]
[420016854,1775616649188,-1000.0,0.00014247,2]
[420016856,1775616649197,-1000.0,0.00014247,2]
[420016858,1775616649206,-1001.50520245,0.00014247,2]
[420016860,1775616649215,-1000.0,0.00014247,2]
[420016862,1775616649223,-500.69200359,0.00014247,2]
[420016864,1775616649232,-1000.0,0.00014247,2]
[420016866,1775616649241,-150.0,0.00014276,2]
[420016868,1775616649250,-188.7915,0.000143,2]
[420016869,1775616649259,-3847.79,0.00014384,2]
[420016871,1775616649268,-229.31,0.00014388,2]
[420016873,1775616649277,-1573.0,0.000144,2]
[420016875,1775616649287,-1573.0,0.0001442,2]
[420016877,1775616649296,-712.08,0.00014585,2]
[420016879,1775616649305,-800.0,0.00014589,2]
[420016881,1775616649314,-624.17,0.00014589,2]
[420016883,1775616649323,-2618.84720921,0.0001459,2]
[420016908,1775616649543,-507.0,0.000131,2]
[420016910,1775616649552,-337.08806726,0.00014145,2]
[420016912,1775616649563,-169.91193274,0.00014145,2]
[420016914,1775616649571,-2028.23418364,0.0001459,2]
[420016918,1775616649599,-195.35652,0.0001459,2]
[420016920,1775616649611,-325.83100956,0.0001459,2]
[420016922,1775616649619,-17.27310276,0.0001459,2]
[420016924,1775616649630,-4982.72689724,0.0001459,2]
[420016926,1775616649639,-5000.0,0.0001459,2]
[420016928,1775616649648,-5000.0,0.0001459,2]
[420016930,1775616649657,-5000.0,0.0001459,2]
[420016932,1775616649666,-712.08,0.00014594,2]
[420016934,1775616649675,-501.0,0.00014658,2]
[420016936,1775616649684,-12373.02683027,0.00014672,2]
[420016938,1775616649693,-1573.0,0.0001472,2]
[420016940,1775616649702,-160.0,0.00014768,2]
[420016942,1775616649711,-1000.0,0.0001479,2]
[420016943,1775616649719,-1565.40450783,0.00014795,2]
[420016945,1775616649729,-1500.0,0.00014795,2]
[420016947,1775616649738,-1500.0,0.00014795,2]
[420016949,1775616649747,-1500.0,0.00014795,2]
[420016951,1775616649756,-1060.82964069,0.00014795,2]
[420016953,1775616649765,-1500.0,0.00014795,2]
[420016955,1775616649774,-1500.0,0.00014795,2]
[420016957,1775616649784,-1500.0,0.00014795,2]
[420016959,1775616649793,-1500.0,0.00014795,2]
[420016961,1775616649802,-1500.0,0.00014795,2]
[420016963,1775616649811,-1500.0,0.00014795,2]
[420016965,1775616649820,-588.27351788,0.00014795,2]
[420016967,1775616649828,-1500.0,0.00014795,2]
[420016969,1775616649837,-553.81547268,0.00014795,2]
[420016971,1775616649846,-288.02015271,0.00014808,2]
[420016973,1775616649855,-1125.37360625,0.00014808,2]
[420016975,1775616649865,-430.28487491,0.00014808,2]
[420016977,1775616649874,-500.0,0.00014841,2]
[420016979,1775616649883,-500.0,0.00014841,2]
[420016981,1775616649892,-500.15012782,0.00014841,2]
[420016983,1775616649900,-500.0,0.00014841,2]
[420016985,1775616649910,-500.0,0.00014841,2]
[420016987,1775616649918,-500.0,0.00014841,2]
[420016989,1775616649927,-500.0,0.00014841,2]
[420016991,1775616649936,-500.0,0.00014841,2]
[420016993,1775616649945,-500.0,0.00014841,2]
[420016995,1775616649954,-500.0,0.00014841,2]
[420016997,1775616649963,-500.0,0.00014841,2]
[420016999,1775616649973,-408.13,0.00014867,2]
[420017001,1775616649982,-500.0,0.00014895,2]
[420017003,1775616649993,-6600.0,0.000149,5]
[420017005,1775616650002,-500.0,0.00014913,2]
[420017007,1775616650012,-500.0,0.00014913,2]
[420017023,1775616650155,-578.20924308,0.00014914,2]
[420017025,1775616650164,-1235.18214925,0.00014914,2]
[420017027,1775616650173,-181.08010149,0.00014914,2]
[420017029,1775616650182,-200.0,0.00014914,2]
[420017031,1775616650192,-623.58710448,0.00014914,2]
[420017033,1775616650202,-8260.13072239,0.00014914,2]
[420017035,1775616650211,-500.0,0.00014914,2]
[420017037,1775616650220,-500.0,0.00014914,2]
[420017038,1775616650230,-500.0,0.00014914,2]
[420017040,1775616650240,-500.0,0.00014914,2]
[420017042,1775616650249,-500.0,0.00014914,2]
[420017044,1775616650258,-500.0,0.00014914,2]
[420017046,1775616650267,-500.0,0.00014914,2]
[420017048,1775616650276,-151.0,0.00014914,2]
[420017050,1775616650285,-500.0,0.00014914,2]
[420017052,1775616650294,-151.0,0.00014914,2]
[420017054,1775616650305,-500.0,0.00014914,2]
[420017056,1775616650314,-151.0,0.00014914,2]
[420017058,1775616650323,-500.0,0.00014914,2]
[420017060,1775616650333,-151.0,0.00014914,2]
[420017062,1775616650342,-500.0,0.00014914,2]
[420017064,1775616650351,-157.93972627,0.00014914,2]
[420017066,1775616650360,-500.0,0.00014914,2]
[420017068,1775616650370,-500.0,0.00014914,2]
[420017070,1775616650380,-500.0,0.00014914,2]
[420017072,1775616650389,-205.09085742,0.00014914,2]
[420017074,1775616650399,-500.0,0.00014914,2]
[420017076,1775616650408,-246.4820278,0.00014914,2]
[420017078,1775616650417,-500.0,0.00014914,2]
[420017080,1775616650426,-3000.0,0.00014914,2]
[420017081,1775616650435,-3000.0,0.00014914,2]
[420017083,1775616650444,-3000.0,0.00014914,2]
[420017085,1775616650453,-3000.0,0.00014914,2]
[420017087,1775616650463,-3000.0,0.00014914,2]
[420017089,1775616650472,-3000.0,0.00014914,2]
[420017091,1775616650481,-3000.0,0.00014914,2]
[420017093,1775616650490,-743.50770149,0.00014914,2]
[420017095,1775616650499,-3000.0,0.00014914,2]
[420017097,1775616650509,-3000.0,0.00014914,2]
[420017099,1775616650518,-3000.0,0.00014914,2]
[420017101,1775616650527,-151.0,0.00014914,2]
[420017103,1775616650536,-3000.0,0.00014914,2]
[420017105,1775616650545,-3000.0,0.00014914,2]
[420017107,1775616650554,-3000.0,0.00014914,2]
[420017109,1775616650563,-2628.44139292,0.00014914,2]
[420017111,1775616650573,-174.61919141,0.00014914,2]
[420017113,1775616650582,-599.60298507,0.00014914,2]
[420017115,1775616650592,-330.40132426,0.00014914,2]
[420017117,1775616650601,-151.0,0.00014914,2]
[420017119,1775616650610,-156.587,0.00014914,2]
[420017120,1775616650619,-1500.0,0.00014914,2]
[420017122,1775616650628,-195.49203722,0.00014914,2]
[420017124,1775616650638,-1500.0,0.00014914,2]
[420017126,1775616650647,-1500.0,0.00014914,2]
[420017128,1775616650657,-1500.0,0.00014914,2]
[420017130,1775616650666,-1500.0,0.00014914,2]
[420017132,1775616650675,-170.0,0.00014914,2]
[420017134,1775616650686,-170.0,0.00014914,2]
[420017136,1775616650695,-170.0,0.00014914,2]
[420017138,1775616650704,-170.0,0.00014914,2]
[420017140,1775616650714,-170.0,0.00014914,2]
[420017142,1775616650723,-170.0,0.00014914,2]
[420017144,1775616650732,-170.0,0.00014914,2]
[420017146,1775616650741,-279.9045709,0.00014914,2]
[420017148,1775616650750,-170.0,0.00014914,2]
[420017150,1775616650759,-170.0,0.00014914,2]
[420017152,1775616650768,-170.0,0.00014914,2]
[420017154,1775616650778,-170.0,0.00014914,2]
[420017156,1775616650787,-170.0,0.00014914,2]
[420017158,1775616650796,-170.0,0.00014914,2]
[420017160,1775616650805,-170.0,0.00014914,2]
[420017162,1775616650814,-170.0,0.00014914,2]
[420017164,1775616650823,-8565.75555911,0.00014969,2]
[420017166,1775616650832,-500.0,0.00014969,2]
[420017168,1775616650841,-151.0,0.00014969,2]
[420017169,1775616650850,-1000.0,0.00014993,2]
[420017171,1775616650859,-1054.68099591,0.00014999,5]
[420017173,1775616650869,-500.0,0.00015,2]
[420017175,1775616650878,-500.0,0.00015,2]
[420017178,1775616650888,-500.0,0.00015,2]
[420017180,1775616650897,-500.0,0.00015,2]
[420017182,1775616650907,-500.0,0.00015,2]
[420017184,1775616650916,-500.0,0.00015,2]
[420017186,1775616650925,-500.0,0.00015,2]
[420017188,1775616650935,-500.0,0.00015,2]
[420017190,1775616650945,-500.0,0.00015,2]
[420017191,1775616650954,-500.0,0.00015,2]
[420017193,1775616650963,-500.0,0.00015,2]
[420017195,1775616650972,-500.0,0.00015,2]
[420017197,1775616650982,-500.0,0.00015,2]
[420017199,1775616650991,-306.56,0.00015,2]
[420017201,1775616651001,-500.0,0.00015,2]
[420017203,1775616651010,-500.0,0.00015,2]
[420017205,1775616651019,-232.56,0.00015,2]
[420017207,1775616651029,-1000.0,0.00015,2]
[420017209,1775616651039,-736.0,0.00015,2]
[420017211,1775616651048,-3292.0,0.00015016,2]
[420017213,1775616651057,-2000.0,0.00015018,2]
[420017215,1775616651067,-8882.6885148,0.00015024,2]
[420017217,1775616651075,-500.0,0.00015024,2]
[420017219,1775616651084,-151.0,0.00015024,2]
[420017221,1775616651093,-3847.79,0.00015068,2]
[420017223,1775616651102,-800.64291471,0.00015068,2]
[420017225,1775616651111,-229.31,0.00015077,2]
[420017227,1775616651120,-9211.34798985,0.00015079,2]
[420017229,1775616651129,-500.0,0.00015079,2]
[420017231,1775616651138,-151.0,0.00015079,2]
[420017233,1775616651147,-168.55510802,0.00015107,2]
[420017235,1775616651156,-823.0,0.00015108,2]
[420017237,1775616651165,-792.04623121,0.00015112,2]
[420017239,1775616651174,-666.0,0.00015133,2]
[420017241,1775616651182,-9552.16786547,0.00015134,2]
[420017243,1775616651191,-500.0,0.00015134,2]
[420017245,1775616651199,-151.0,0.00015134,2]
[420017247,1775616651209,-12373.02683027,0.00015136,2]
[420017249,1775616651218,-666.0,0.00015157,2]
[420017251,1775616651227,-500.0,0.00015189,2]
[420017253,1775616651236,-4175.94977995,0.00015189,2]
[420017255,1775616651244,-151.0,0.00015189,2]
[420017257,1775616651253,-507.0,0.00015191,3]
[420017258,1775616651263,-462.65231904,0.00015192,2]
[420017260,1775616651272,-170.90618538,0.00015192,2]
[420017262,1775616651281,-666.0,0.00015199,2]
[420017264,1775616651290,-151.873119,0.000152,2]
[420017266,1775616651299,-88183.07,0.000152,2]
[420017268,1775616651308,-151.0,0.000152,2]
[420017270,1775616651318,-151.0,0.000152,2]
[420017272,1775616651327,-163.701385,0.000152,2]
[420017274,1775616651336,-152.967427,0.000152,2]
[420017276,1775616651345,-225.188054,0.000152,2]
[420017278,1775616651355,-151.0,0.000152,2]
[420017280,1775616651364,-151.0,0.000152,2]
[420017282,1775616651373,-152.089937,0.000152,2]
[420017284,1775616651382,-229.460605,0.000152,2]
[420017286,1775616651391,-151.0,0.000152,2]
[420017288,1775616651400,-151.0,0.000152,2]
[420017290,1775616651409,-151.0,0.000152,2]
[420017292,1775616651418,-151.0,0.000152,2]
[420017294,1775616651427,-241.397593,0.000152,2]
[420017296,1775616651436,-151.0,0.000152,2]
[420017298,1775616651445,-4275.13,0.00015205,2]
[420017300,1775616651454,-195.56466025,0.00015208,2]
[420017302,1775616651463,-1000.0,0.00015219,2]
[420017304,1775616651473,-500.0,0.00015244,2]
[420017306,1775616651482,-151.0,0.00015244,2]
[420017308,1775616651491,-3785.0,0.00015268,2]
[420017310,1775616651500,-500.0,0.00015299,2]
[420017312,1775616651509,-500.0,0.00015299,2]
[420017314,1775616651518,-151.0,0.00015299,2]
[420017316,1775616651526,-1434.0,0.00015311,2]
[420017318,1775616651536,-1000.0,0.00015316,2]
[420017320,1775616651545,-228.20241818,0.00015338,2]
[420017322,1775616651554,-151.0,0.00015342,2]
[420017324,1775616651564,-151.0,0.00015342,2]
[420017326,1775616651573,-192.875061,0.00015342,2]
[420017327,1775616651583,-151.0,0.00015342,2]
[420017330,1775616651592,-290.236793,0.00015342,2]
[420017331,1775616651602,-290.236793,0.00015342,2]
[420017333,1775616651611,-290.236793,0.00015342,2]
[420017335,1775616651621,-290.236793,0.00015342,2]
[420017337,1775616651631,-151.0,0.00015342,2]
[420017340,1775616651641,-151.0,0.00015342,2]
[420017342,1775616651649,-151.0,0.00015342,2]
[420017344,1775616651659,-151.0,0.00015342,2]
[420017346,1775616651668,-151.0,0.00015342,2]
[420017348,1775616651677,-151.0,0.00015342,2]
[420017350,1775616651686,-1196.92099441,0.00015342,2]
[420017351,1775616651695,-1000.0,0.00015342,2]
[420017353,1775616651705,-2000.0,0.00015342,2]
[420017355,1775616651714,-190.9183629,0.00015342,2]
[420017357,1775616651723,-2000.0,0.00015342,2]
[420017359,1775616651732,-500.0,0.00015354,2]
[420017362,1775616651743,-151.0,0.00015354,2]
[420017364,1775616651752,-500.0,0.00015357,2]
[420017366,1775616651761,-1573.0,0.0001536,2]
[420017368,1775616651770,-1000.0,0.00015374,2]
[420017370,1775616651779,-151.000001,0.00015374,2]
[420017372,1775616651788,-151.0,0.00015374,2]
[420017374,1775616651797,-151.0,0.00015374,2]
[420017376,1775616651806,-151.530362,0.00015374,2]
[420017378,1775616651815,-151.0,0.00015374,2]
[420017380,1775616651825,-152.12683,0.00015374,2]
[420017381,1775616651833,-666.0,0.00015388,2]
[420017383,1775616651843,-151.524369,0.00015389,2]
[420017385,1775616651852,-459.294581,0.00015389,2]
[420017387,1775616651861,-459.294581,0.00015389,2]
[420017389,1775616651870,-151.0,0.00015389,2]
[420017391,1775616651879,-459.294581,0.00015389,2]
[420017393,1775616651888,-151.0,0.00015389,2]
[420017395,1775616651898,-459.294581,0.00015389,2]
[420017397,1775616651907,-280.213972,0.00015389,2]
[420017399,1775616651916,-152.118531,0.00015389,2]
[420017401,1775616651925,-1795.337493,0.00015389,2]
[420017403,1775616651934,-153.356891,0.00015389,2]
[420017405,1775616651943,-1795.337493,0.00015389,2]
[420017407,1775616651952,-191.475807,0.00015389,2]
[420017409,1775616651961,-191.475807,0.00015389,2]
[420017411,1775616651970,-191.475807,0.00015389,2]
[420017413,1775616651980,-1795.337493,0.00015389,2]
[420017415,1775616651989,-191.475807,0.00015389,2]
[420017417,1775616651998,-1795.337493,0.00015389,2]
[420017419,1775616652007,-151.0,0.00015389,2]
[420017421,1775616652016,-151.0,0.00015389,2]
[420017423,1775616652026,-1000.0,0.00015389,2]
[420017425,1775616652035,-1000.0,0.00015389,2]
[420017428,1775616652046,-1000.0,0.00015389,2]
[420017429,1775616652055,-1000.0,0.00015389,2]
[420017431,1775616652064,-1000.0,0.00015389,2]
[420017433,1775616652074,-1000.0,0.00015389,2]
[420017435,1775616652083,-1000.0,0.00015389,2]
[420017437,1775616652093,-1000.0,0.00015389,2]
[420017439,1775616652102,-1000.0,0.00015389,2]
[420017441,1775616652111,-503.76959284,0.00015389,2]
[420017443,1775616652121,-155.4903749,0.00015392,2]
[420017445,1775616652130,-200.0,0.00015394,2]
[420017447,1775616652139,-500.0,0.00015409,2]
[420017449,1775616652148,-151.0,0.00015409,2]
[420017451,1775616652158,-3785.0,0.00015413,2]
[420017454,1775616652168,-1000.0,0.00015418,2]
[420017456,1775616652177,-360.0,0.00015424,2]
[420017457,1775616652187,-259.21813743,0.00015424,2]
[420017459,1775616652195,-478.50471256,0.00015425,2]
[420017461,1775616652205,-150.0,0.00015428,2]
[420017463,1775616652214,-1000.0,0.00015443,2]
[420017465,1775616652223,-200.0,0.00015445,2]
[420017467,1775616652232,-400.4,0.00015461,2]